fUST/lending_fUST_20251113
["ID","MTS","AMOUNT","RATE_DAILY","PERIOD"]
[393843950,1763034633447,-360.0,0.00025719,2]
[393843951,1763034633456,-533.2722871,0.00025768,2]
[393843952,1763034633465,-1000.0,0.00025768,2]
[393843953,1763034633476,-162.95,0.000258,7]
[393843954,1763034633487,-320.06338216,0.00025908,2]
[393843955,1763034633497,-5160.4419649,0.00025963,2]
[393843956,1763034633506,-2518.0275227,0.00025972,2]
[393843957,1763034633516,-500.0,0.00025973,2]
[393843958,1763034633527,-511.09353697,0.00025973,2]
[393843959,1763034633536,-500.0,0.00025973,2]
[393843960,1763034633547,-15481.3258947,0.0002599,2]
[393843961,1763034633560,-140411.8,0.00026,2]
[393843962,1763034633569,-2179.38,0.00026008,3]
[393843963,1763034633578,-544.84,0.00026008,3]
[393843964,1763034633587,-17435.0,0.00026018,3]
[393843965,1763034633596,-8717.5,0.00026018,3]
[393843966,1763034633605,-4358.74,0.00026018,3]
[393843967,1763034633614,-1089.68,0.00026018,3]
[393843968,1763034633623,-520.66887014,0.00026073,2]
[393843969,1763034633632,-157.23885909,0.00026073,2]
[393843970,1763034633641,-500.0,0.00026073,2]
[393843971,1763034633651,-500.0,0.00026073,2]
[393843972,1763034633660,-500.21794384,0.00026073,2]
[393843973,1763034633670,-503.05674476,0.00026073,2]
[393843974,1763034633679,-500.0,0.00026073,2]
[393843975,1763034633688,-300.26745259,0.00026161,2]
[393843976,1763034633698,-251.11897888,0.00026166,2]
[393843977,1763034633707,-5160.4419649,0.00026245,2]
[393843978,1763034633716,-9836.92,0.00026255,2]
[393843979,1763034633726,-460.0,0.00026267,2]
[393843980,1763034633735,-512.25097809,0.00026521,2]
[393843981,1763034633744,-231.0,0.0002654,2]
[393843982,1763034633754,-1000.0,0.00026621,2]
[393843983,1763034633763,-1012.37417918,0.00026621,2]
[393843984,1763034633772,-625.08461573,0.00026621,2]
[393843985,1763034633781,-561.8478844,0.00026629,2]
[393843986,1763034633789,-501.44271015,0.00026636,2]
[393843987,1763034633799,-240.78469,0.00026676,2]
[393843988,1763034633808,-504.65412575,0.00026691,2]
[393843989,1763034633817,-500.0,0.00026691,2]
[393843990,1763034633827,-500.0,0.00026691,2]
[393843991,1763034633837,-500.0,0.00026691,2]
[393843992,1763034633847,-500.0,0.00026691,2]
[393843993,1763034633856,-500.0,0.00026691,2]
[393843994,1763034633866,-500.8192034,0.00026691,2]
[393843995,1763034633877,-505.77340568,0.00026691,2]
[393843996,1763034633886,-260.4103811,0.00026714,2]
[393843997,1763034633896,-560.0,0.00026815,2]
[393843998,1763034633907,-300.56772004,0.0002685,2]
[393843999,1763034633916,-4342.27,0.000269,7]
[393844000,1763034633925,-1006.27469917,0.00027168,2]
[393844001,1763034633935,-1000.0,0.00027239,2]
[393844002,1763034633944,-503.12642364,0.00027239,2]
[393844003,1763034633954,-1000.0,0.00027239,2]
[393844004,1763034633964,-476.66309201,0.00027239,2]
[393844005,1763034633973,-1000.0,0.00027239,2]
[393844006,1763034633983,-270.0455652,0.00027262,2]
[393844007,1763034633993,-240.0,0.00027317,2]
[393844008,1763034634002,-678.55319527,0.00027363,2]
[393844009,1763034634012,-240.0,0.00027385,2]
[393844010,1763034634021,-240.0,0.0002743,7]
[393844011,1763034634031,-223.0,0.00027497,2]
[393844012,1763034634041,-823.0,0.00027601,2]
[393844013,1763034634051,-223.0,0.0002762,2]
[393844014,1763034634060,-240.0,0.00027725,2]
[393844015,1763034634070,-240.0,0.00027731,2]
[393844016,1763034634080,-5160.4419649,0.00027758,2]
[393844017,1763034634089,-9836.92,0.00027768,2]
[393844018,1763034634099,-1500.0,0.00027787,5]
[393844019,1763034634108,-1500.0,0.00027787,5]
[393844020,1763034634118,-1232.39533544,0.00027787,5]
[393844021,1763034634128,-302.07737096,0.00027793,2]
[393844022,1763034634137,-9836.92,0.00027798,2]
[393844023,1763034634147,-280.03725112,0.0002781,2]
[393844024,1763034634157,-240.0,0.00027874,2]
[393844025,1763034634166,-240.0,0.00027962,2]
[393844026,1763034634175,-240.0,0.00028168,2]
[393844027,1763034634185,-152.342546,0.00028173,20]
[393844028,1763034634194,-2000.0,0.00028335,5]
[393844029,1763034634203,-2000.0,0.00028335,5]
[393844030,1763034634212,-240.0,0.00028347,2]
[393844031,1763034634221,-223.0,0.00028348,2]
[393844032,1763034634230,-290.39862941,0.00028358,2]
[393844033,1763034634240,-240.0,0.00028368,2]
[393844034,1763034634250,-150.95256622,0.00028473,5]
[393844035,1763034634258,-500.89722849,0.00028473,5]
[393844036,1763034634267,-500.0,0.00028473,5]
[393844037,1763034634276,-500.61599441,0.00028473,5]
[393844038,1763034634285,-501.2120578,0.00028473,5]
[393844039,1763034634295,-632.89102319,0.00028473,5]
[393844040,1763034634304,-505.31925633,0.00028473,5]
[393844041,1763034634314,-500.0,0.00028473,5]
[393844042,1763034634323,-504.84313769,0.00028473,5]
[393844043,1763034634332,-502.42633663,0.00028473,5]
[393844044,1763034634342,-500.0,0.00028473,5]
[393844045,1763034634351,-582.64706107,0.00028473,5]
[393844046,1763034634361,-500.5207951,0.00028473,5]
[393844047,1763034634370,-500.0,0.00028473,5]
[393844048,1763034634381,-239.5867406,0.00028473,5]
[393844049,1763034634390,-500.0,0.00028473,5]
[393844050,1763034634400,-500.0,0.00028473,5]
[393844051,1763034634409,-291.77716722,0.00028473,5]
[393844052,1763034634418,-504.58815974,0.00028473,5]
[393844053,1763034634428,-5160.4419649,0.0002849,2]
[393844054,1763034634438,-9836.92,0.00028499,2]
[393844055,1763034634448,-9836.92,0.00028499,2]
[393844056,1763034634458,-32801.3533392,0.000285,7]
[393844057,1763034634467,-294.92,0.000285,2]
[393844058,1763034634478,-237.43706286,0.0002854,2]
[393844059,1763034634489,-223.0,0.00028625,2]
[393844060,1763034634498,-225.0,0.00028654,2]
[393844061,1763034634507,-223.0,0.00028781,2]
[393844062,1763034634517,-173.434922,0.00028793,20]
[393844063,1763034634527,-240.0,0.00028819,2]
[393844064,1763034634536,-2500.0,0.00028883,5]
[393844065,1763034634546,-2506.93294187,0.00028883,5]
[393844066,1763034634557,-301.1433787,0.00028906,2]
[393844067,1763034634567,-4342.27,0.00029,7]
[393844068,1763034634576,-506.05025343,0.00029021,5]
[393844069,1763034634585,-879.84382448,0.00029021,5]
[393844070,1763034634594,-1000.0,0.00029021,5]
[393844071,1763034634604,-1012.58690366,0.00029021,5]
[393844072,1763034634613,-1000.0,0.00029021,5]
[393844073,1763034634623,-240.0,0.00029073,2]
[393844074,1763034634632,-5160.4419649,0.00029138,2]
[393844075,1763034634641,-9836.92,0.00029148,2]
[393844076,1763034634650,-223.0,0.0002918,7]
[393844077,1763034634659,-391.95840851,0.00029255,2]
[393844078,1763034634668,-240.0,0.00029407,2]
[393844079,1763034634679,-152.342546,0.00029446,20]
[393844080,1763034634689,-240.0,0.00029472,7]
[393844081,1763034634699,-240.0,0.00029483,2]
[393844082,1763034634709,-535.23220887,0.00029568,5]
[393844083,1763034634719,-1500.0,0.00029568,5]
[393844084,1763034634730,-240.0,0.00029582,2]
[393844085,1763034634741,-240.0,0.00029627,2]
[393844086,1763034634751,-706.13838041,0.00029678,2]
[393844087,1763034634760,-9836.92,0.00029807,2]
[393844088,1763034634770,-225.0,0.00029918,7]
[393844089,1763034634779,-221.092,0.00029977,24]
[393844090,1763034634788,-2000.0,0.0003,7]
[393844091,1763034634797,-300.0,0.00030009,2]
[393844092,1763034634806,-167.82969646,0.00030024,2]
[393844093,1763034634815,-309.0,0.0003011,2]
[393844094,1763034634824,-2000.0,0.00030116,5]
[393844095,1763034634833,-176.75557324,0.0003037,2]
[393844096,1763034634842,-151.0,0.00030473,7]
[393844097,1763034634851,-151.0,0.00030473,7]
[393844098,1763034634860,-151.0,0.00030473,7]
[393844099,1763034634869,-151.0,0.00030473,7]
[393844100,1763034634880,-332.0,0.00030473,7]
[393844101,1763034634889,-151.0,0.00030473,7]
[393844102,1763034634897,-332.0,0.00030473,7]
[393844103,1763034634907,-167.05724253,0.00030473,7]
[393844104,1763034634916,-332.0,0.00030473,7]
[393844105,1763034634926,-332.0,0.00030473,7]
[393844106,1763034634935,-276.37282029,0.00030473,7]
[393844107,1763034634946,-294.92,0.000305,2]
[393844108,1763034634956,-2500.0,0.00030664,5]
[393844109,1763034634965,-152.342546,0.00030719,20]
[393844110,1763034634975,-160.0,0.00031671,2]
[393844111,1763034634985,-152.342546,0.00031992,20]
[393844112,1763034634994,-503.21993374,0.00032086,5]
[393844113,1763034635003,-987.0,0.00032234,2]
[393844114,1763034635012,-2168.0,0.00032234,2]
[393844115,1763034635022,-638.581,0.00032234,2]
[393844116,1763034635031,-4342.27,0.000323,7]
[393844117,1763034635040,-9836.92,0.00032403,2]
[393844118,1763034635050,-151.0,0.000326,18]
[393844119,1763034635059,-5000.0,0.00032727,2]
[393844120,1763034635068,-170.0,0.00032767,2]
[393844121,1763034635079,-2426.21639992,0.00032877,120]
[393844122,1763034635089,-5000.0,0.00032877,120]
[393844123,1763034635098,-160.86571865,0.000329,120]
[393844124,1763034635107,-5160.4419649,0.0003299,2]
[393844125,1763034635117,-5000.0,0.00033,120]
[393844126,1763034635127,-199.0,0.0003315,14]
[393844127,1763034635137,-240.78469,0.00033165,2]
[393844128,1763034635146,-180.0,0.00033205,2]
[393844129,1763034635155,-335.01,0.00033698,15]
[393844130,1763034635164,-9836.92,0.00033729,2]
[393844131,1763034635174,-294.92,0.00034,14]
[393844132,1763034635183,-706.13838041,0.00034196,2]
[393844133,1763034635192,-190.0,0.00034411,3]
[393844134,1763034635202,-151.0,0.000345,20]
[393844135,1763034635211,-320.06338215,0.00034959,2]
[393844136,1763034635219,-9836.92,0.00035159,2]
[393844137,1763034635229,-6250.0,0.0003516,120]
[393844138,1763034635238,-987.0,0.00035234,2]
[393844139,1763034635247,-2168.0,0.00035234,2]
[393844140,1763034635256,-629.0,0.00035234,2]
[393844141,1763034635266,-1135.428978,0.000356,23]
[393844142,1763034635276,-500.0,0.00035616,30]
[393844143,1763034635286,-151.0,0.00035616,31]
[393844144,1763034635295,-267.271984,0.00035616,31]
[393844145,1763034635305,-500.0,0.0003589,30]
[393844146,1763034635315,-1000.0,0.000361,23]
[393844147,1763034635325,-500.0,0.00036164,30]
[393844148,1763034635334,-151.0,0.000364,18]
[393844149,1763034635343,-500.0,0.00036438,30]
[393844150,1763034635352,-5160.4419649,0.00036588,3]
[393844151,1763034635361,-9836.92,0.00036598,2]
[393844152,1763034635370,-1000.0,0.000366,23]
[393844153,1763034635380,-500.0,0.00036712,30]
[393844154,1763034635390,-500.0,0.00036986,30]
[393844155,1763034635400,-1000.0,0.000371,23]
[393844156,1763034635410,-163.95623981,0.00037101,2]
[393844157,1763034635419,-501.02248316,0.00037128,14]
[393844158,1763034635427,-501.81055129,0.00037128,14]
[393844159,1763034635436,-152.342546,0.0003719,7]
[393844160,1763034635445,-5160.4419649,0.00037212,3]
[393844161,1763034635454,-9836.92,0.00037222,2]
[393844162,1763034635464,-9836.92,0.00037222,2]
[393844163,1763034635473,-9836.92,0.00037222,2]
[393844164,1763034635486,-9836.92,0.00037222,2]
[393844165,1763034635495,-9836.92,0.00037222,2]
[393844166,1763034635504,-9836.92,0.00037222,2]
[393844167,1763034635513,-9836.92,0.00037222,2]
[393844168,1763034635524,-9836.97642539,0.00037222,2]
[393844169,1763034635535,-500.0,0.0003726,30]
[393844170,1763034635544,-500.0,0.00037273,5]
[393844171,1763034635555,-500.82256472,0.00037273,5]
[393844172,1763034635567,-11176.25750745,0.00037273,7]
[393844173,1763034635576,-151347.5570306,0.00037273,7]
[393844174,1763034635586,-6297.68518984,0.00037273,7]
[393844175,1763034635595,-129355.16059195,0.00037273,30]
[393844176,1763034635604,-500.0,0.00037534,30]
[393844177,1763034635613,-294.92,0.000376,14]
[393844178,1763034635622,-500.0,0.00037808,30]
[393844179,1763034635632,-511.24508573,0.00037821,5]
[393844180,1763034635641,-987.0,0.00038234,2]
[393844181,1763034635650,-596.251,0.00038234,2]
[393844182,1763034635660,-152.342546,0.00038267,7]
[393844183,1763034635669,-162.95,0.000383,7]
[393844184,1763034635679,-151.0,0.000383,19]
[393844185,1763034635688,-200.0,0.00038356,7]
[393844186,1763034635824,-706.84451879,0.00038714,2]
[393844187,1763034635833,-5160.4419649,0.00039217,3]
[393844188,1763034635843,-5000.0,0.00039227,4]
[393844189,1763034635852,-152.342546,0.00039343,7]
[393844190,1763034635861,-152.342546,0.0003964,31]
[393844191,1763034635870,-240.78469,0.00039654,2]
[393844192,1763034635879,-2000.0,0.0004,21]
[393844193,1763034635888,-6250.0,0.00040183,120]
[393844194,1763034635897,-151.0,0.000402,12]
[393844195,1763034635906,-152.342546,0.00040429,60]
[393844196,1763034635916,-1005.09,0.00041,120]
[393844197,1763034635925,-500.0,0.00041096,2]
[393844198,1763034635935,-1057.0,0.00041096,2]
[393844199,1763034635944,-1565.0,0.00041096,2]
[393844200,1763034635953,-636.0,0.00041096,2]
[393844201,1763034635963,-500.0,0.00041096,2]
[393844202,1763034635972,-500.0,0.00041096,2]
[393844203,1763034635982,-151.0,0.00041096,2]
[393844204,1763034635991,-151.0,0.00041096,2]
[393844205,1763034636000,-500.0,0.00041151,2]
[393844206,1763034636009,-1057.0,0.00041151,2]
[393844207,1763034636019,-1565.0,0.00041151,2]
[393844208,1763034636035,-636.0,0.00041151,2]
[393844209,1763034636046,-500.0,0.00041151,2]
[393844210,1763034636056,-540.21360703,0.00041151,2]
[393844211,1763034636066,-205.25726566,0.00041151,2]
[393844212,1763034636075,-151.0,0.00041151,2]
[393844213,1763034636085,-152.342546,0.00041161,30]
[393844214,1763034636095,-500.0,0.00041206,2]
[393844215,1763034636105,-1057.0,0.00041206,2]
[393844216,1763034636114,-1565.0,0.00041206,2]
[393844217,1763034636123,-636.0,0.00041206,2]
[393844218,1763034636132,-500.0,0.00041206,2]
[393844219,1763034636142,-188.58658493,0.00041206,2]
[393844220,1763034636150,-882.961,0.00041234,2]
[393844221,1763034636161,-363.30307898,0.0004126,2]
[393844222,1763034636171,-1057.0,0.0004126,2]
[393844223,1763034636181,-1565.0,0.0004126,2]
[393844224,1763034636191,-636.0,0.0004126,2]
[393844225,1763034636200,-500.0,0.0004126,2]
[393844226,1763034636209,-2151.14,0.00041299,60]
[393844227,1763034636218,-1057.0,0.00041315,2]
[393844228,1763034636227,-1565.0,0.00041315,2]
[393844229,1763034636236,-636.0,0.00041315,2]
[393844230,1763034636246,-500.0,0.00041315,2]
[393844231,1763034636255,-1057.0,0.0004137,2]
[393844232,1763034636265,-1565.0,0.0004137,2]
[393844233,1763034636274,-636.0,0.0004137,2]
[393844234,1763034636284,-469.37463282,0.0004137,2]
[393844235,1763034636293,-1057.0,0.00041425,2]
[393844236,1763034636302,-1565.0,0.00041425,2]
[393844237,1763034636311,-636.0,0.00041425,2]
[393844238,1763034636320,-5160.4419649,0.00041469,3]
[393844239,1763034636329,-1057.0,0.0004148,2]
[393844240,1763034636338,-1565.0,0.0004148,2]
[393844241,1763034636347,-636.0,0.0004148,2]
[393844242,1763034636356,-1057.0,0.00041534,2]
[393844243,1763034636366,-1565.0,0.00041534,2]
[393844244,1763034636378,-636.0,0.00041534,2]
[393844245,1763034636387,-1057.0,0.00041589,2]
[393844246,1763034636396,-1565.0,0.00041589,2]
[393844247,1763034636405,-636.0,0.00041589,2]
[393844248,1763034636414,-1057.0,0.00041644,2]
[393844249,1763034636423,-1565.0,0.00041644,2]
[393844250,1763034636433,-636.0,0.00041644,2]
[393844251,1763034636442,-152.342546,0.00041698,2]
[393844252,1763034636452,-1057.0,0.00041699,2]
[393844253,1763034636462,-1565.0,0.00041699,2]
[393844254,1763034636471,-636.0,0.00041699,2]
[393844255,1763034636484,-1057.0,0.00041754,2]
[393844256,1763034636494,-1565.0,0.00041754,2]
[393844257,1763034636503,-636.0,0.00041754,2]
[393844258,1763034636512,-1057.0,0.00041808,2]
[393844259,1763034636522,-1565.0,0.00041808,2]
[393844260,1763034636530,-636.0,0.00041808,2]
[393844261,1763034636539,-1057.0,0.00041863,2]
[393844262,1763034636548,-1565.0,0.00041863,2]
[393844263,1763034636560,-636.0,0.00041863,2]
[393844264,1763034636569,-1057.0,0.00041918,2]
[393844265,1763034636578,-1565.0,0.00041918,2]
[393844266,1763034636586,-636.0,0.00041918,2]
[393844267,1763034636596,-1057.0,0.00041973,2]
[393844268,1763034636609,-1565.0,0.00041973,2]
[393844269,1763034636619,-636.0,0.00041973,2]
[393844270,1763034636628,-1000.0,0.00042,120]
[393844271,1763034636638,-1057.0,0.00042028,2]
[393844272,1763034636647,-1565.0,0.00042028,2]
[393844273,1763034636656,-636.0,0.00042028,2]
[393844274,1763034636666,-1057.0,0.00042082,2]
[393844275,1763034636675,-1565.0,0.00042082,2]
[393844276,1763034636685,-636.0,0.00042082,2]
[393844277,1763034636694,-151.0,0.000421,19]
[393844278,1763034636704,-1057.0,0.00042137,2]
[393844279,1763034636713,-1565.0,0.00042137,2]
[393844280,1763034636722,-636.0,0.00042137,2]
[393844281,1763034636731,-5160.4419649,0.00042182,3]
[393844282,1763034636740,-1057.0,0.00042192,2]
[393844283,1763034636750,-1565.0,0.00042192,2]
[393844284,1763034636759,-636.0,0.00042192,2]
[393844285,1763034636768,-162.47324899,0.00042219,30]
[393844286,1763034636777,-162.47324899,0.00042219,30]
[393844287,1763034636786,-1057.0,0.00042247,2]
[393844288,1763034636796,-1565.0,0.00042247,2]
[393844289,1763034636806,-636.0,0.00042247,2]
[393844290,1763034636815,-152.342546,0.00042289,31]
[393844291,1763034636824,-1057.0,0.00042301,2]
[393844292,1763034636833,-1565.0,0.00042301,2]
[393844293,1763034636843,-636.0,0.00042301,2]
[393844294,1763034636852,-1060.21114692,0.00042356,2]
[393844295,1763034636861,-1567.12327781,0.00042356,2]
[393844296,1763034636871,-654.01783473,0.00042356,2]
[393844297,1763034636880,-152.342546,0.00042564,60]
[393844298,1763034636889,-232301.97997006,0.0004257,2]
[393844299,1763034637179,-643.77140468,0.0004257,2]
[393844300,1763034637190,-6387.39452461,0.0004257,2]
[393844301,1763034637214,-912.404044,0.0004257,2]
[393844304,1763034639955,-0.00031349,0.00023998,2]
[393844330,1763034643041,-155.87096177,0.00020643,2]
[393844331,1763034643051,-209.80669723,0.00023998,2]
[393844332,1763034643061,-236.79880507,0.00023998,2]
[393844333,1763034643071,-168.0,0.0002817,2]
[393844334,1763034643080,-571.68835039,0.00032712,30]
[393844343,1763035336978,228.733729,0.00013699,2]
[393844344,1763035427594,5000.0,0.000201,2]
[393844345,1763035450531,5000.0,0.000201,2]
[393844346,1763035473015,5000.0,0.000201,2]
[393844347,1763035496015,5000.0,0.000201,2]
[393844348,1763035519041,5000.0,0.000201,2]
[393844349,1763035541516,5000.0,0.000201,2]
[393844350,1763035563914,5000.0,0.000201,2]
[393844351,1763035586737,5000.0,0.000201,2]
[393844352,1763035609302,5000.0,0.000201,2]
[393844353,1763035629466,454.50000455,0.0002,4]
[393844354,1763035635580,5000.0,0.000201,2]
[393844355,1763035657963,5000.0,0.000201,2]
[393844356,1763035680914,5000.0,0.000201,2]
[393844357,1763035703712,5000.0,0.000201,2]
[393844358,1763035727789,5000.0,0.000201,2]
[393844359,1763035750953,5000.0,0.000201,2]
[393844360,1763035774385,5000.0,0.000201,2]
[393844361,1763035797484,5000.0,0.000201,2]
[393844362,1763035820253,4316.76626645,0.000201,2]
[393844513,1763035838291,-683.23373355,0.000201,2]
[393844514,1763035838301,-228.733729,0.00020187,2]
[393844515,1763035838310,-207.79248681,0.00020193,2]
[393844516,1763035838320,-359.21984916,0.00020199,4]
[393844517,1763035838330,-500.0,0.00022057,2]
[393844518,1763035838340,-228.733729,0.00026676,2]
[393844519,1763035838350,-1154.69324636,0.00027568,2]
[393844520,1763035838359,-168.0,0.0002778,2]
[393844521,1763035838369,-168.0,0.00028062,2]
[393844522,1763035838378,-160.0,0.00029423,2]
[393844523,1763035838387,-168.0,0.0002973,2]
[393844524,1763035838396,-2100.82662017,0.00032053,2]
[393844525,1763035838412,-975.67453733,0.00032053,2]
[393844526,1763035838424,-11590.19349107,0.00032053,2]
[393844527,1763035838433,-455.0530302,0.00033088,2]
[393844528,1763035838443,-228.733729,0.00033165,2]
[393844529,1763035838453,-156.18270369,0.00034639,2]
[393844531,1763035838463,-292.70175758,0.00036354,2]
[393844532,1763035838473,-163.95623981,0.00036824,2]
[393844533,1763035838484,-228.733729,0.00039654,2]
[393844534,1763035838494,-500.0,0.00040146,60]
[393844535,1763035838504,-1586.64060312,0.00041683,2]
[393844536,1763035838514,-150.0,0.000422,7]
[393844537,1763035838524,-320.06338215,0.00042373,2]
[393844538,1763035838533,-199.13245301,0.00042373,2]
[393844539,1763035838543,-176.874,0.0004243,64]
[393844540,1763035838552,-243.43277377,0.00042459,31]
[393844541,1763035838562,-500.0,0.00042459,31]
[393844542,1763035838571,-500.0,0.00042459,7]
[393844543,1763035838581,-500.0,0.00042459,31]
[393844544,1763035838590,-222.46047606,0.00042459,31]
[393844545,1763035838600,-500.0,0.00042459,31]
[393844546,1763035838610,-500.0,0.00042459,31]
[393844547,1763035838619,-518.72818812,0.00042459,31]
[393844548,1763035838629,-205.12199296,0.00042459,31]
[393844549,1763035838639,-500.0,0.00042459,31]
[393844550,1763035838648,-500.0,0.00042459,31]
[393844551,1763035838657,-500.0,0.00042459,31]
[393844552,1763035838668,-500.0,0.00042459,31]
[393844553,1763035838677,-36.46542058,0.00042459,31]
[393844596,1763035846219,-709.6301631,0.00042045,2]
[393844597,1763035846230,-2575.18023849,0.00042045,2]
[393844598,1763035846274,-746.1206595,0.00042045,2]
[393844599,1763035846285,-969.06893891,0.00042045,2]
[393844600,1763035846295,-463.53457942,0.00042459,31]
[393844601,1763035846305,-175.38678795,0.00042459,31]
[393844602,1763035846314,-5342.88573362,0.0004246,3]
[393844604,1763036711402,3417.542492,0.00032197,120]
[393844725,1763037040276,-300.0,0.00024999,2]
[393844726,1763037040286,-2553.0,0.00025,2]
[393844727,1763037040295,-868.693413,0.00025,2]
[393844728,1763037040304,-347.25448342,0.00025,2]
[393844729,1763037040314,-22024.09580589,0.0003,30]
[393844730,1763037040323,-354.36752328,0.00032877,120]
[393844731,1763037040332,-5000.0,0.00032877,120]
[393844732,1763037040341,-632.05631877,0.0003526,16]
[393844733,1763037040350,-5505.2968069,0.00035505,30]
[393844734,1763037040359,-163.95623982,0.00036332,2]
[393844735,1763037040371,-212.7421191,0.00037094,2]
[393844736,1763037040382,-500.0,0.00037231,15]
[393844737,1763037040391,-500.0,0.00037231,15]
[393844738,1763037040401,-436.578368,0.00037231,15]
[393844739,1763037040412,-500.0,0.00037231,15]
[393844740,1763037040422,-244.84381446,0.00037231,15]
[393844741,1763037040431,-500.0,0.00037231,15]
[393844742,1763037040441,-14543.1332815,0.00037234,2]
[393844743,1763037040452,-176.874,0.00037524,48]
[393844744,1763037040462,-3417.542492,0.00037563,120]
[393844745,1763037040471,-224.81075553,0.00038052,4]
[393844746,1763037040481,-500.0,0.00038052,4]
[393844747,1763037040490,-500.0,0.00038052,4]
[393844748,1763037040500,-508.27016446,0.00038052,4]
[393844749,1763037040511,-523.69791652,0.00038052,4]
[393844750,1763037040521,-500.0,0.00038052,4]
[393844751,1763037040530,-500.0,0.00038052,4]
[393844752,1763037040539,-160.52,0.000381,7]
[393844753,1763037040549,-566.90172512,0.00038319,3]
[393844754,1763037040558,-500.0,0.00038326,4]
[393844755,1763037040568,-509.07042671,0.00038326,4]
[393844756,1763037040577,-500.0,0.00038326,4]
[393844757,1763037040586,-500.0,0.00038326,4]
[393844758,1763037040596,-500.0,0.000386,4]
[393844759,1763037040605,-500.0,0.000386,4]
[393844760,1763037040614,-500.0,0.000386,4]
[393844761,1763037040623,-500.0,0.00038874,4]
[393844762,1763037040633,-500.0,0.00038874,4]
[393844763,1763037040642,-439.1855425,0.00038874,4]
[393844764,1763037040651,-566.90172512,0.00039141,3]
[393844765,1763037040660,-529.57,0.00039141,3]
[393844766,1763037040670,-264.79,0.00039141,3]
[393844767,1763037040679,-794.39,0.00039141,3]
[393844768,1763037040688,-500.0,0.00039148,4]
[393844769,1763037040698,-500.0,0.00039148,4]
[393844770,1763037040707,-1059.14,0.00039415,3]
[393844771,1763037040716,-500.0,0.00039422,4]
[393844772,1763037040725,-500.0,0.00039422,4]
[393844773,1763037040735,-500.0,0.00039696,4]
[393844774,1763037040744,-500.0,0.00039696,4]
[393844775,1763037040753,-1510.14801277,0.000399,120]
[393844776,1763037040762,-566.90172512,0.00039963,3]
[393844777,1763037040772,-500.0,0.0003997,4]
[393844778,1763037040782,-532.68679964,0.0003997,4]
[393844779,1763037040791,-470.83573496,0.00040244,4]
[393844780,1763037040800,-1059.14,0.00040511,3]
[393844781,1763037040809,-529.58,0.00040511,3]
[393844782,1763037040819,-2118.28,0.00040785,3]
[393844783,1763037040828,-566.90172512,0.00040785,3]
[393844784,1763037040838,-1000.0,0.00041,120]
[393844785,1763037040847,-1000.0,0.00041,120]
[393844786,1763037040856,-151.0,0.00041343,120]
[393844787,1763037040864,-230.216015,0.00041343,120]
[393844788,1763037040874,-152.66609,0.00041343,120]
[393844789,1763037040883,-151.0,0.00041343,120]
[393844790,1763037040892,-232.40346,0.00041343,120]
[393844791,1763037040901,-151.0,0.00041343,120]
[393844792,1763037040910,-232.40346,0.00041343,120]
[393844793,1763037040919,-151.0,0.00041343,120]
[393844794,1763037040929,-232.40346,0.00041343,120]
[393844795,1763037040938,-232.40346,0.00041343,120]
[393844796,1763037040947,-151.0,0.00041343,120]
[393844797,1763037040957,-151.0,0.00041343,120]
[393844798,1763037040966,-151.0,0.00041343,120]